bitfinex/quotes_ETHUSD_20240714
["timestamp","ask_amount","ask_price","bid_price","bid_amount"]
[1720981232494,0.81910257,3194.8,3194.5,2.50425]
[1720981232791,0.08659603,3194.6,3194.5,2.50425]
[1720981233066,0.81910257,3194.8,3194.5,2.50425]
[1720981233641,0.08680384,3194.7,3194.5,2.50425]
[1720981233837,0.81910257,3194.8,3194.5,2.50425]
[1720981234223,0.08680384,3194.7,3194.5,2.50425]
[1720981234457,0.81910257,3194.8,3194.5,2.50425]
[1720981234671,0.08680384,3194.7,3194.5,2.50425]
[1720981235022,0.81910257,3194.8,3194.5,2.50425]
[1720981235475,2.4301,3194.6,3194.1,2.50458]
[1720981235823,0.08658942,3194.5,3194.1,2.50458]
[1720981238095,0.08658942,3194.5,3194.1,2.50184892]
[1720981245278,0.08658942,3194.5,3194.2,0.792]
[1720981245495,0.81910257,3194.8,3194.4,2.50438]
[1720981245682,0.81910257,3194.8,3194.5,2.50425]
[1720981247906,0.81910257,3194.8,3194.5,2.81728803]
[1720981249089,0.08680384,3194.7,3194.5,2.81728803]
[1720981249391,0.81910257,3194.8,3194.5,2.81728803]
[1720981249884,0.08680384,3194.7,3194.5,2.81728803]
[1720981250082,0.81910257,3194.8,3194.5,2.81728803]
[1720981250283,0.08664633,3194.6,3194.5,2.81728803]
[1720981250511,0.81910257,3194.8,3194.7,2.50414]
[1720981254785,0.49140241,3194.8,3194.7,2.50414]
[1720981260290,0.49414818,3194.8,3194.7,2.50414]
[1720981261930,0.49414818,3194.8,3194.5,2.81728803]
[1720981262583,0.49414818,3194.8,3194.6,2.50421]
[1720981268542,0.49140241,3194.8,3194.6,2.50421]
[1720981270247,0.81906729,3194.8,3194.6,2.50421]
[1720981273652,2.4068,3194.7,3194.5,0.31303803]
[1720981273854,0.57299373,3194.7,3194.5,0.31303803]
[1720981274058,0.81906729,3194.8,3194.5,0.31303803]
[1720981291338,0.81906729,3194.8,3194.6,3.1475]
[1720981291541,0.81906729,3194.8,3194.7,2.50414]
[1720981291741,0.81906729,3194.8,3194.7,7.36378]
[1720981292338,0.49140241,3194.8,3194.7,7.36378]
[1720981292539,0.49140241,3194.8,3194.7,8.4610868]
[1720981293779,0.49140241,3194.8,3194.7,9.2530868]
[1720981297040,0.49140241,3194.8,3194.7,12.2530868]
[1720981306915,0.49140241,3194.8,3194.7,6.29614]
[1720981307215,0.57662415,3194.8,3194.7,6.29614]
[1720981307715,0.57662415,3194.8,3194.7,8.74954]
[1720981308078,0.49140241,3194.8,3194.7,8.74954]
[1720981308398,0.57663373,3194.8,3194.7,11.25368]
[1720981308601,0.49140241,3194.8,3194.7,12.4103518]
[1720981309114,0.49140241,3194.8,3194.7,9.9569518]
[1720981309319,0.49140241,3194.8,3194.7,8.80028]
[1720981310576,0.49140241,3194.8,3194.7,5.50414]
[1720981310889,0.49140241,3194.8,3194.7,6.29614]
[1720981310890,0.57672072,3194.8,3194.7,6.29614]
[1720981311226,0.57672072,3194.8,3194.7,5.50414]
[1720981311877,2.3385,3194.7,3194.5,0.31303803]
[1720981312219,0.3767804,3194.6,3194.5,0.31303803]
[1720981316221,0.08525833,3194.6,3194.5,0.31303803]
[1720981316721,0.49140241,3194.8,3194.5,0.31303803]
[1720981316881,0.08511925,3194.6,3194.5,0.31303803]
[1720981317082,0.49140241,3194.8,3194.5,0.31303803]
[1720981317286,0.08511925,3194.6,3194.5,0.31303803]
[1720981317634,0.08512883,3194.6,3194.5,0.31303803]
[1720981317828,0.49140241,3194.8,3194.5,0.31303803]
[1720981318122,0.62228601,3194.7,3194.5,0.31303803]
[1720981323640,4.87992,3194.6,3194.5,0.31303803]
[1720981323817,7.38414,3194.6,3194.5,0.31303803]
[1720981324144,7.46928806,3194.6,3194.5,0.31303803]
[1720981329247,4.96506806,3194.6,3194.5,0.31303803]
[1720981330750,0.08514806,3194.6,3194.5,0.31303803]
[1720981332263,0.08514806,3194.6,3194.5,3.42742283]
[1720981332626,0.49140241,3194.8,3194.6,2.50417]
[1720981332960,0.08507308,3194.7,3194.6,3.29616]
[1720981333321,0.49140241,3194.8,3194.6,5.80032]
[1720981333522,0.49140241,3194.8,3194.7,2.50414]
[1720981333720,0.49140241,3194.8,3194.7,3.17648228]
[1720981336119,0.57663789,3194.8,3194.7,3.17648228]
[1720981339562,0.57663789,3194.8,3194.7,0.67234228]
[1720981339761,0.57663789,3194.8,3194.6,2.50416]
[1720981340824,0.57663789,3194.8,3194.5,0.31303803]
[1720981341454,0.57663789,3194.8,3194.5,2.81727803]
[1720981351570,0.57663789,3194.8,3194.6,2.50421]
[1720981353692,0.57663789,3194.8,3194.5,2.81733803]
[1720981374806,0.57663789,3194.8,3194.6,4.94321]
[1720981377096,0.57663789,3194.8,3194.6,2.50421]
[1720981394195,0.57663789,3194.8,3194.5,2.81730803]
[1720981405136,0.57663789,3194.8,3194.5,0.31303803]
[1720981409221,3.08070789,3194.8,3194.5,0.31303803]
[1720981409429,0.54291079,3194.7,3194.5,0.31303803]
[1720981409830,4.88362868,3194.6,3194.5,0.31303803]
[1720981410028,5.67562868,3194.6,3194.5,0.31303803]
[1720981410226,8.17984868,3194.6,3194.5,0.31303803]
[1720981413749,8.26394868,3194.6,3194.5,0.31303803]
[1720981413954,9.47696197,3194.6,3194.5,0.31303803]
[1720981420628,8.68496197,3194.6,3194.5,0.31303803]
[1720981420853,9.47696197,3194.6,3194.5,0.31303803]
[1720981425461,9.47696197,3194.6,3193.5,4.90117]
[1720981425462,2.50462,3194.1,3193.5,4.72272992]
[1720981425872,0.08113639,3194.0,3193.5,4.72272992]
[1720981426241,0.57263854,3194.0,3193.5,4.72272992]
[1720981429083,0.57263854,3194.0,3193.5,2.21765992]
[1720981429282,3.07734854,3194.0,3193.5,2.21765992]
[1720981429440,3.38507439,3194.0,3193.5,2.21765992]
[1720981430740,2.50478,3193.9,3193.5,2.21765992]
[1720981430939,0.08103937,3193.8,3193.5,2.21765992]
[1720981433662,2.50501,3193.6,3193.1,2.3546]
[1720981433961,0.08093414,3193.5,3193.1,2.3546]
[1720981435255,0.08093414,3193.5,3193.1,3.070599]
[1720981435466,2.50488,3193.8,3193.2,2.3546]
[1720981435764,2.50488,3193.8,3193.2,3.1466]
[1720981435959,0.08098706,3193.7,3193.2,3.1466]
[1720981436396,0.08098706,3193.7,3193.2,5.65192]
[1720981438971,0.08098706,3193.7,3193.3,2.50519]
[1720981439283,2.99620215,3194.0,3193.4,2.3546]
[1720981439889,0.07979755,3193.9,3193.4,2.3546]
[1720981440709,0.07979755,3193.9,3193.4,4.85975]
[1720981441766,0.07979755,3193.9,3193.5,2.50508]
[1720981444410,0.07979755,3193.9,3193.6,2.3546]
[1720981444705,0.07979755,3193.9,3193.5,4.85968]
[1720981445905,0.07979755,3193.9,3193.5,7.3647]
[1720981449409,0.07979755,3193.9,3193.5,4.85962]
[1720981449627,0.07979755,3193.9,3193.6,0.565162]
[1720981449831,0.07979755,3193.9,3193.7,2.5049]
[1720981451138,2.57059755,3193.9,3193.3,2.5052]
[1720981451322,2.57059755,3193.9,3193.4,2.50512]
[1720981451525,0.07979755,3193.9,3193.5,2.50508]
[1720981451836,0.07979755,3193.9,3193.5,4.90318]
[1720981452545,0.07979755,3193.9,3193.5,2.50508]
[1720981453837,2.4908,3193.8,3193.3,7.40847]
[1720981454037,2.4908,3193.8,3193.3,4.90327]
[1720981454239,0.07974031,3193.7,3193.3,4.90327]
[1720981454538,2.4908,3193.8,3193.3,4.90327]
[1720981454694,0.07974031,3193.7,3193.3,4.90327]
[1720981454889,2.4908,3193.8,3193.3,4.90327]
[1720981455135,0.07974031,3193.7,3193.3,4.90327]
[1720981455342,2.4908,3193.8,3193.3,4.90327]
[1720981455551,0.07974031,3193.7,3193.3,2.50517]
[1720981455839,2.4908,3193.8,3193.3,2.50517]
[1720981456043,0.0797103,3193.6,3193.3,2.50517]
[1720981456243,0.07974989,3193.7,3193.3,2.50517]
[1720981456446,0.07968988,3193.5,3193.3,2.50517]
[1720981456746,0.07965029,3193.4,3193.3,2.50517]
[1720981456897,2.4908,3193.8,3193.3,2.50517]
[1720981457102,0.07974031,3193.7,3193.3,2.50517]
[1720981457298,3.07026051,3193.8,3193.3,2.50517]
[1720981457607,0.07974031,3193.7,3193.3,2.50517]
[1720981458118,0.0797103,3193.6,3193.3,2.50517]
[1720981458315,2.4908,3193.8,3193.3,2.50517]
[1720981458639,0.07973073,3193.7,3193.3,2.50517]
[1720981459153,0.07970073,3193.6,3193.3,2.50517]
[1720981459304,2.4908,3193.8,3193.3,2.50517]
[1720981459498,0.07973073,3193.7,3193.3,2.50517]
[1720981459847,3.07026051,3193.8,3193.3,2.50517]
[1720981460137,0.07972115,3193.7,3193.3,2.50517]
[1720981460304,3.07026051,3193.8,3193.3,2.50517]
[1720981460506,0.07972115,3193.7,3193.3,2.50517]
[1720981460840,3.07026051,3193.8,3193.3,2.50517]
[1720981461144,0.07972115,3193.7,3193.3,2.50517]
[1720981461307,3.07026051,3193.8,3193.3,2.50517]
[1720981461647,0.07972115,3193.7,3193.3,2.50517]
[1720981462011,3.07026051,3193.8,3193.3,2.50517]
[1720981462206,0.07969115,3193.6,3193.3,2.50517]
[1720981462751,0.07966114,3193.5,3193.3,2.50517]
[1720981462929,2.4908,3193.8,3193.3,2.50517]
[1720981463252,0.07970464,3193.7,3193.3,2.50517]
[1720981463755,0.07967463,3193.6,3193.3,2.50517]
[1720981464071,2.4908,3193.8,3193.2,2.50531]
[1720981464210,0.07964462,3193.5,3193.2,2.50531]
[1720981464406,2.4908,3193.8,3193.2,2.50531]
[1720981464608,0.07961461,3193.4,3193.2,2.50531]
[1720981464853,2.4908,3193.8,3193.2,2.50531]
[1720981465007,0.0795846,3193.3,3193.2,2.50531]
[1720981465210,2.4908,3193.8,3193.2,2.50531]
[1720981465456,0.0795846,3193.3,3193.2,2.50531]
[1720981465640,0.5303163,3193.7,3193.2,2.50531]
[1720981465849,0.0795846,3193.3,3193.2,2.50531]
[1720981466044,2.4908,3193.8,3193.2,2.50531]
[1720981466265,0.0795846,3193.3,3193.2,2.50531]
[1720981466427,4.99566,3193.8,3193.2,2.50531]
[1720981466621,0.07959418,3193.3,3193.2,2.50531]
[1720981466833,0.81358221,3193.7,3193.2,2.50531]
[1720981467046,0.07959418,3193.3,3193.2,2.50531]
[1720981467245,0.81358221,3193.7,3193.2,2.50531]
[1720981467415,0.0795846,3193.3,3193.2,2.50531]
[1720981467928,0.81358221,3193.7,3193.2,2.50531]
[1720981468131,0.66059885,3193.6,3193.2,2.50531]
[1720981468455,2.455,3193.5,3193.0,2.50541]
[1720981468755,0.07961461,3193.4,3193.0,2.50541]
[1720981469055,4.95994,3193.7,3193.0,2.50541]
[1720981469207,0.0795694,3193.3,3193.0,2.50541]
[1720981469413,4.95994,3193.7,3193.0,2.50541]
[1720981469632,0.07953939,3193.2,3193.0,2.50541]
[1720981469863,4.95994,3193.7,3193.0,2.50541]
[1720981470013,0.07955719,3193.1,3193.0,2.50541]
[1720981470213,0.495994,3193.6,3193.0,2.50541]
[1720981470453,0.07958271,3193.1,3193.0,2.50541]
[1720981470642,0.49154687,3193.6,3193.0,2.50541]
[1720981470854,0.07958271,3193.1,3193.0,2.50541]
[1720981471028,0.49154687,3193.6,3193.0,2.50541]
[1720981471246,0.07957313,3193.1,3193.0,7.46999]
[1720981471570,0.49154687,3193.6,3193.4,4.96422]
[1720981471736,0.07966554,3193.5,3193.4,5.75622]
[1720981472347,0.07966554,3193.5,3193.4,3.29712]
[1720981472679,0.07966554,3193.5,3193.4,0.792]
[1720981472819,0.07966554,3193.5,3193.2,5.75638]
[1720981474258,0.07966554,3193.5,3193.2,3.29728]
[1720981478658,0.07966554,3193.5,3193.2,2.50528]
[1720981478859,2.39176554,3193.5,3193.2,2.50528]
[1720981480370,2.39176554,3193.5,3193.0,3.29743]
[1720981480371,2.39176554,3193.5,3193.0,5.01084]
[1720981483567,2.39176554,3193.5,3192.8,3.29763]
[1720981483568,2.68009678,3193.5,3192.8,3.29763]
[1720981483934,5.18522678,3193.5,3192.8,3.29763]
[1720981487581,2.50525,3193.3,3192.6,4.77385]
[1720981487794,2.39130141,3193.2,3192.5,0.792]
[1720981488078,2.64182641,3193.2,3192.5,0.3004517]
[1720981488290,2.64182641,3193.2,3192.4,2.50588]
[1720981488444,2.4026,3192.9,3192.3,2.50602]
[1720981488792,0.0788545,3192.8,3192.4,0.792]
[1720981489664,0.0788545,3192.8,3192.3,2.50602]
[1720981489982,0.0788545,3192.8,3192.4,0.792]
[1720981490485,0.0788545,3192.8,3192.4,3.29794]
[1720981493094,0.01572987,3192.5,3192.4,3.29794]
[1720981493751,0.09443032,3192.5,3192.4,3.29794]
[1720981494661,0.09443032,3192.5,3192.4,0.792]
[1720981495184,0.09443032,3192.5,3192.3,2.50602]
[1720981498118,0.01572987,3192.4,3192.3,2.50602]
[1720981498619,0.01572987,3192.4,3192.1,2.50617]
[1720981498620,0.0943922,3192.4,3192.1,2.50617]
[1720981498780,0.0943922,3192.4,3192.1,3.29817]
[1720981499720,0.0943922,3192.4,3192.1,2.50617]
[1720981499721,0.01572987,3192.4,3192.1,2.50617]
[1720981500093,0.07863229,3192.3,3191.8,2.50635]
[1720981500293,2.48123229,3192.3,3191.8,2.50635]
[1720981500480,0.01572987,3192.4,3192.0,2.50626]
[1720981500684,0.07849085,3192.2,3192.0,2.50626]
[1720981500881,0.01572987,3192.4,3192.0,2.50626]
[1720981501423,0.07876366,3192.3,3192.0,2.50626]
[1720981503517,0.01572987,3192.1,3192.0,2.50626]
[1720981504197,0.09441747,3192.1,3192.0,2.50626]
[1720981509730,0.09441747,3192.1,3192.0,8.007381]
[1720981510107,0.01572987,3192.1,3192.0,8.007381]
[1720981516547,0.01572987,3192.1,3192.0,7.42692]
[1720981517746,0.01572987,3192.1,3192.0,5.01252]
[1720981518152,0.01572987,3192.1,3192.0,2.50626]
[1720981518354,0.01572987,3192.1,3192.0,3.29826]
[1720981518521,0.09447355,3192.1,3192.0,3.29826]
[1720981518717,0.01572987,3192.1,3192.0,3.29826]
[1720981518930,0.09447355,3192.1,3192.0,3.29826]
[1720981519135,0.01572987,3192.1,3192.0,3.29826]
[1720981519721,0.09447355,3192.1,3191.9,2.50634]
[1720981519918,0.01572987,3192.1,3191.9,2.50634]
[1720981520558,2.37722987,3192.1,3191.9,2.50634]
[1720981520928,0.07871364,3192.0,3191.9,2.50634]
[1720981522630,0.09444351,3192.0,3191.9,2.50634]
[1720981523790,0.09444351,3192.0,3191.9,5.822555]
[1720981523992,0.01572987,3192.0,3191.9,5.822555]
[1720981525957,0.09439712,3192.0,3191.9,5.822555]
[1720981526298,0.01572987,3192.0,3191.9,8.116555]
[1720981530663,0.50736984,3192.0,3191.9,8.116555]
[1720981538393,0.50736984,3192.0,3191.9,10.622895]
[1720981539999,0.50736984,3192.0,3191.9,16.884916]
[1720981540213,0.50736984,3192.0,3191.9,16.427286]
[1720981540431,0.50736984,3192.0,3191.9,11.172895]
[1720981551903,0.50736984,3192.0,3191.9,16.754945]
[1720981552118,0.50736984,3192.0,3191.9,19.754945]
[1720981552347,0.07491863,3192.0,3191.9,19.754945]
[1720981552547,2.3177,3192.8,3192.7,2.50571]
[1720981552823,2.3177,3192.8,3192.7,3.29771]
[1720981553124,2.80931032,3192.8,3192.7,3.29771]
[1720981556233,2.88664985,3192.8,3192.7,3.29771]
[1720981557752,2.80931032,3192.8,3192.7,3.29771]
[1720981560671,2.80931032,3192.8,3192.7,2.50571]
[1720981560876,2.88666938,3192.8,3192.7,2.50571]
[1720981563388,2.88666938,3192.8,3192.7,3.29771]
[1720981566761,0.56896938,3192.8,3192.7,3.29771]
[1720981575499,0.49161032,3192.8,3192.7,3.29771]
[1720981576380,0.56899031,3192.8,3192.7,3.29771]
[1720981578273,0.56899031,3192.8,3192.7,5.80342]
[1720981578797,0.49161032,3192.8,3192.7,5.80342]
[1720981579899,0.49161032,3192.8,3192.7,8.30913]
[1720981587574,0.49161032,3192.8,3192.7,22.489483]
[1720981587774,0.49161032,3192.8,3192.7,20.488311]
[1720981587974,0.49161032,3192.8,3192.7,22.7781121]
[1720981589107,0.49161032,3192.8,3192.7,19.4659121]
[1720981590113,0.49161032,3192.8,3192.7,18.4298901]
[1720981590313,0.49161032,3192.8,3192.7,14.3482601]
[1720981590615,0.49161032,3192.8,3192.7,13.7000471]
[1720981591118,0.49161032,3192.8,3192.7,12.7275771]
[1720981591289,0.49161032,3192.8,3192.7,15.2250661]
[1720981597231,0.49161032,3192.8,3192.7,15.7750661]
[1720981602535,0.49161032,3192.8,3192.7,14.2087561]
[1720981602725,0.49161032,3192.8,3192.7,11.1489311]
[1720981603438,0.49161032,3192.8,3192.7,13.2789401]
[1720981603940,0.49161032,3192.8,3192.7,12.4869401]
[1720981604241,0.49161032,3192.8,3192.7,11.1489311]
[1720981604944,0.49161032,3192.8,3192.7,14.0797481]
[1720981606039,0.49161032,3192.8,3192.7,17.0797481]
[1720981606227,0.49161032,3192.8,3192.7,19.5854581]
[1720981606434,0.49161032,3192.8,3192.7,22.0240581]
[1720981606605,0.32780879,3193.8,3193.5,5.01016]
[1720981606809,0.32780879,3193.8,3193.7,3.29693]
[1720981607247,2.3405,3193.9,3193.8,2.50485]
[1720981607742,2.83199776,3193.9,3193.8,2.50485]
[1720981610744,2.90818391,3193.9,3193.8,2.50485]
[1720981611335,0.56768391,3193.9,3193.8,5.0097]
[1720981611636,0.56768391,3193.9,3193.8,5.48754608]
[1720981613553,2.95828391,3193.9,3193.8,2.50485]
[1720981622660,0.56768391,3193.9,3193.8,2.50485]
[1720981626673,2.95828391,3193.9,3193.8,2.50485]
[1720981631981,2.95828391,3193.9,3193.7,0.792]
[1720981632830,2.95828391,3193.9,3193.7,3.29688]
[1720981636726,3.2541123,3193.9,3193.7,0.792]
[1720981636906,2.363,3193.8,3193.5,3.29705]
[1720981637223,0.0762221,3193.7,3193.5,3.29705]
[1720981637622,2.363,3193.8,3193.5,3.29705]
[1720981637826,0.0761574,3193.6,3193.5,3.29705]
[1720981637997,2.363,3193.8,3193.5,3.29705]
[1720981638197,0.0761574,3193.6,3193.5,3.29705]
[1720981638745,2.363,3193.8,3193.5,3.29705]
[1720981638914,0.49149776,3193.9,3193.7,0.792]
[1720981639941,0.07617866,3193.8,3193.7,0.792]
[1720981640748,0.07617866,3193.8,3193.7,3.29693]
[1720981660278,0.07617866,3193.8,3193.7,5.80186]
[1720981665021,0.49149776,3193.9,3193.8,2.50485]
[1720981665409,0.49149776,3193.9,3193.8,5.0097]
[1720981668203,0.49149776,3193.9,3193.8,5.83401]
[1720981668521,0.56694751,3193.9,3193.8,5.83401]
[1720981670638,0.49149776,3193.9,3193.8,5.83401]
[1720981684306,0.49149776,3193.9,3193.8,5.0097]
[1720981731902,0.49149776,3193.9,3193.8,7.51455]
[1720981732102,0.49149776,3193.9,3193.8,12.86615]
[1720981732298,2.2842,3194.8,3194.7,2.50414]
[1720981732504,2.61193653,3194.8,3194.7,3.29614]
[1720981732929,3.1033126,3194.8,3194.7,3.29614]
[1720981735939,3.1723949,3194.8,3194.7,3.29614]
[1720981736535,3.1723949,3194.8,3194.7,0.792]
[1720981739441,3.1723949,3194.8,3194.6,2.50421]
[1720981739829,3.1033126,3194.8,3194.6,2.50421]
[1720981740253,0.06910954,3194.7,3194.6,2.50421]
[1720981741231,3.1033126,3194.8,3194.6,2.50421]
[1720981741426,0.06910117,3194.7,3194.6,2.50421]
[1720981741760,3.1033126,3194.8,3194.6,2.50421]
[1720981741920,0.06910117,3194.7,3194.6,2.50421]
[1720981742661,3.1033126,3194.8,3194.6,2.50421]
[1720981742957,0.06910117,3194.7,3194.6,2.50421]
[1720981743261,3.1033126,3194.8,3194.6,2.50421]
[1720981743778,0.06910117,3194.7,3194.6,2.50421]
[1720981744535,3.1033126,3194.8,3194.6,2.50421]
[1720981744733,0.06910117,3194.7,3194.6,2.50421]
[1720981744939,3.1033126,3194.8,3194.6,2.50421]
[1720981745253,0.06910117,3194.7,3194.6,2.50421]
[1720981745559,3.1033126,3194.8,3194.6,2.50421]
[1720981745750,0.06916639,3194.7,3194.6,2.50421]
[1720981746122,3.1033126,3194.8,3194.6,2.50421]
[1720981746323,0.06915682,3194.7,3194.6,2.50421]
[1720981746660,3.1033126,3194.8,3194.6,2.50421]
[1720981746856,0.06915682,3194.7,3194.6,2.50421]
[1720981747158,3.1033126,3194.8,3194.5,3.2963]
[1720981747333,0.06914724,3194.7,3194.5,3.2963]
[1720981747535,3.1033126,3194.8,3194.5,3.2963]
[1720981756490,3.1033126,3194.8,3194.5,0.792]
[1720981756691,3.66403486,3194.8,3194.5,0.792]
[1720981756879,0.06914164,3194.7,3194.5,0.792]
[1720981757079,3.66403486,3194.8,3194.5,0.792]
[1720981757280,0.06914164,3194.7,3194.5,0.792]
[1720981757458,3.66403486,3194.8,3194.5,0.792]
[1720981757658,0.06914164,3194.7,3194.5,0.792]
[1720981757858,3.66403486,3194.8,3194.5,0.792]
[1720981758059,0.06914164,3194.7,3194.5,0.792]
[1720981758258,3.66403486,3194.8,3194.5,0.792]
[1720981758552,0.06914164,3194.7,3194.5,0.792]
[1720981758994,3.66403486,3194.8,3194.5,0.792]
[1720981759294,0.36640349,3194.7,3194.5,0.792]
[1720981759799,0.06911166,3194.6,3194.5,0.792]
[1720981762805,3.17265879,3194.8,3194.5,0.792]
[1720981763099,0.06911166,3194.6,3194.5,0.792]
[1720981763504,2.38351166,3194.6,3194.5,0.792]
[1720981768289,2.64159705,3194.6,3194.3,0.792]
[1720981768493,2.3144,3194.6,3194.3,0.792]
[1720981770490,2.80581508,3194.6,3194.3,0.792]
[1720981777524,2.80581508,3194.6,3194.0,2.50464]
[1720981777729,2.80581508,3194.6,3193.8,7.28]
[1720981777730,2.2937,3194.5,3193.8,7.28]
[1720981777965,2.2937,3194.1,3193.8,7.28]
[1720981778126,2.2937,3194.1,3193.8,8.072]
[1720981780575,2.50454,3194.2,3193.8,8.072]
[1720981781078,2.2937,3194.3,3193.8,8.072]
[1720981781377,5.36385393,3194.3,3193.8,8.072]
[1720981781841,0.0665615,3194.2,3193.8,8.072]
[1720981782273,0.32774878,3194.4,3194.0,0.792]
[1720981782477,0.06653151,3194.1,3194.0,2.50468]
[1720981782682,0.32774878,3194.4,3194.0,3.2645]
[1720981782975,0.32774878,3194.4,3194.2,0.792]
[1720981783477,0.06659286,3194.3,3194.2,0.792]
[1720981790678,0.06659286,3194.3,3194.1,2.50455]
[1720981793587,0.06659286,3194.3,3194.0,0.792]
[1720981794030,0.06659286,3194.3,3194.0,3.29667]
[1720981794816,0.06659286,3194.3,3194.0,2.50467]
[1720981795112,0.34453702,3194.3,3194.0,2.50467]
[1720981798281,0.06659286,3194.3,3194.0,2.50467]
[1720981802023,0.06659286,3194.3,3193.9,0.792]
[1720981802219,0.06659286,3194.3,3193.8,7.28]
[1720981802385,2.3851,3194.2,3193.8,7.28]
[1720981803238,2.91349216,3194.2,3193.8,7.28]
[1720981805645,4.88987,3193.9,3193.8,7.28]
[1720981805932,2.50485,3193.8,3193.4,19.94]
[1720981808537,2.50485,3193.8,3193.4,20.732]
[1720981809831,2.71283035,3193.9,3193.4,20.732]
[1720981809995,0.156,3193.8,3193.4,20.732]
[1720981810196,0.156,3193.8,3193.4,0.792]
[1720981812699,0.156,3193.8,3193.2,2.5053]
[1720981812906,0.156,3193.8,3193.3,0.792]
[1720981815540,0.156,3193.8,3193.4,2.4715]
[1720981815704,0.156,3193.8,3193.5,0.792]
[1720981816228,0.156,3193.8,3193.5,3.29703]
[1720981816635,0.156,3193.8,3193.6,2.505]
[1720981817819,0.06605533,3193.7,3193.6,2.505]
[1720981818019,0.156,3193.8,3193.6,5.00995]
[1720981818236,0.06603579,3193.7,3193.6,5.00995]
[1720981818414,0.156,3193.8,3193.7,2.50493]
[1720981821325,0.22207417,3193.8,3193.7,2.50493]
[1720981825457,0.22207417,3193.8,3193.7,3.29693]
[1720981825752,0.22207417,3193.8,3193.7,4.1822898]
[1720981827761,0.22207417,3193.8,3193.7,3.29693]
[1720981830663,0.71356248,3193.8,3193.7,3.29693]
[1720981837355,0.71356248,3193.8,3193.7,8.13566]
[1720981837749,0.64748831,3193.8,3193.7,8.13566]
[1720981840787,0.64748831,3193.8,3193.7,10.64059]
[1720981841156,0.64748831,3193.8,3193.7,11.704649]
[1720981863803,0.64748831,3193.8,3193.7,20.09063]
[1720981864542,0.64748831,3193.8,3193.7,25.59556]
[1720981864837,0.32773114,3194.8,3194.7,2.50414]
[1720981865140,0.32773114,3194.8,3194.7,5.80028]
[1720981865306,2.4066,3195.6,3195.0,2.50385]
[1720981865502,0.32769288,3195.3,3195.1,0.792]
[1720981865731,2.4066,3195.2,3195.1,3.29582]
[1720981868244,2.89792121,3195.2,3195.1,3.29582]
[1720981868935,2.96254297,3195.2,3195.1,3.29582]
[1720981870149,2.96254297,3195.2,3195.1,5.79965]
[1720981870309,0.55594297,3195.2,3195.1,5.79965]
[1720981870510,0.49132121,3195.2,3195.1,6.379615]
[1720981895191,2.95982121,3195.2,3194.5,7.28]
[1720981895395,2.50385,3195.1,3194.5,7.28]
[1720981895593,2.4685,3195.0,3194.5,7.28]
[1720981895900,0.06466055,3194.9,3194.5,7.28]
[1720981896056,0.06466055,3194.9,3194.4,3.29635]
[1720981896256,2.4685,3195.0,3194.4,3.29635]
[1720981896473,0.06466055,3194.9,3194.6,0.792]
[1720981896804,3.26524812,3195.0,3194.6,0.792]
[1720981897105,0.06466055,3194.9,3194.6,0.792]
[1720981897597,2.4685,3194.8,3194.6,0.792]
[1720981899297,2.4685,3194.8,3194.2,2.50446]
[1720981899522,2.4685,3194.8,3194.4,0.792]
[1720981905819,2.4685,3194.5,3194.1,7.28]
[1720981906026,2.4685,3194.5,3194.3,0.792]
[1720981920469,2.4685,3194.5,3194.2,0.792]
[1720981924576,2.26,3194.8,3194.4,0.792]
[1720981928138,0.06447781,3194.7,3194.4,0.792]
[1720981928340,2.75140658,3194.8,3194.4,0.792]
[1720981928566,0.06444783,3194.6,3194.4,0.792]
[1720981928874,2.75140658,3194.8,3194.4,0.792]
[1720981929492,0.06447781,3194.7,3194.4,0.792]
[1720981929880,2.75140658,3194.8,3194.4,0.792]
[1720981930043,0.06428325,3194.6,3194.4,0.792]
[1720981930242,2.75140658,3194.8,3194.4,0.792]
[1720981930463,0.06426284,3194.5,3194.4,0.792]
[1720981930777,0.06431324,3194.7,3194.4,0.792]
[1720981931277,2.75140658,3194.8,3194.4,0.792]
[1720981931437,0.06428325,3194.6,3194.4,0.792]
[1720981931640,2.75140658,3194.8,3194.4,0.792]
[1720981931881,0.06425327,3194.5,3194.4,0.792]
[1720981932475,2.75140658,3194.8,3194.4,0.792]
[1720981932681,0.06425327,3194.5,3194.4,0.792]
[1720981932877,2.75140658,3194.8,3194.4,0.792]
[1720981933046,0.06425327,3194.5,3194.4,0.792]
[1720981933247,2.75140658,3194.8,3194.4,0.792]
[1720981933447,0.06425327,3194.5,3194.4,0.792]
[1720981933676,2.75140658,3194.8,3194.4,0.792]
[1720981933847,0.06425327,3194.5,3194.4,0.792]
[1720981934043,2.75140658,3194.8,3194.4,0.792]
[1720981934247,0.06425327,3194.5,3194.4,0.792]
[1720981934748,2.75140658,3194.8,3194.4,0.792]
[1720981934947,0.06425327,3194.5,3194.4,0.792]
[1720981935148,2.75140658,3194.8,3194.4,0.792]
[1720981935452,0.06425327,3194.5,3194.4,0.792]
[1720981935975,2.4185,3194.7,3194.3,2.50445]
[1720981936174,0.06425327,3194.5,3194.3,2.50445]
[1720981936473,2.4185,3194.7,3194.3,2.50445]
[1720981936644,0.06422328,3194.4,3194.3,2.50445]
[1720981936849,2.4185,3194.7,3194.3,2.50445]
[1720981937056,0.06422328,3194.4,3194.3,2.50445]
[1720981937280,3.01244362,3194.7,3194.3,2.50445]
[1720981937583,2.4185,3194.7,3194.3,2.50445]
[1720981937784,0.06428325,3194.6,3194.3,2.50445]
[1720981938954,0.06428325,3194.6,3194.2,0.792]
[1720981939282,2.4185,3194.7,3194.2,3.29652]
[1720981945610,2.4185,3194.7,3194.3,2.50445]
[1720981946113,0.06428045,3194.6,3194.3,2.50445]
[1720981947025,0.06428045,3194.6,3194.4,0.792]
[1720981965425,0.06428045,3194.6,3194.4,3.29637]
[1720981966604,0.06428045,3194.6,3194.5,7.3541]
[1720981966929,0.49140658,3194.8,3194.5,2.3455]
[1720981967132,0.49140658,3194.8,3194.7,5.80028]
[1720981967793,0.49140658,3194.8,3194.7,8.14578]